bitfinex-derivatives/quotes_SOLF0:USTF0_20241002
["timestamp","ask_amount","ask_price","bid_price","bid_amount"]
[1727886300744,5.6,147.32,147.29,3.51932]
[1727886300945,5.6,147.32,147.29,0.12502]
[1727886301447,3.3942,147.3,147.29,0.12502]
[1727886302147,3.3939,147.32,147.29,3.51932]
[1727886302541,3.3938,147.32,147.29,3.51932]
[1727886303049,5.6,147.33,147.29,3.51932]
[1727886303355,3.3939,147.32,147.29,3.51932]
[1727886303843,8.9936,147.33,147.3,3.3941]
[1727886304055,85.43468523,147.39,147.29,16.41502]
[1727886304244,5.6,147.37,147.31,16.29]
[1727886304439,5.6,147.37,147.34,3.3931]
[1727886304440,3.3926,147.37,147.34,3.3931]
[1727886304750,5.6,147.38,147.32,16.29]
[1727886305055,5.6,147.38,147.33,3.3933]
[1727886305056,3.393,147.36,147.33,3.3933]
[1727886305245,3.393,147.36,147.32,16.29]
[1727886305651,3.393,147.36,147.34,3.3933]
[1727886306247,73.43208523,147.39,147.34,3.3933]
[1727886306445,3.3927,147.37,147.35,3.393]
[1727886306848,3.3927,147.37,147.32,17.5916]
[1727886307047,3.3927,147.37,147.34,3.3932]
[1727886307247,3.3924,147.39,147.32,17.5916]
[1727886307449,0.12502,147.41,147.34,16.29]
[1727886307756,3.51682,147.41,147.34,16.29]
[1727886307945,3.51682,147.41,147.36,16.29]
[1727886308551,0.12502,147.41,147.36,17.6877]
[1727886308750,0.12502,147.41,147.39,3.392]
[1727886308951,0.12502,147.41,147.36,17.6877]
[1727886309253,0.12502,147.41,147.35,5.6]
[1727886309254,16.41502,147.41,147.35,5.6]
[1727886309548,16.41502,147.41,147.32,23.1916]
[1727886309750,0.12502,147.41,147.34,16.29]
[1727886310253,0.12502,147.41,147.36,16.29]
[1727886310444,0.12502,147.41,147.34,16.29]
[1727886310644,3.3923,147.39,147.34,16.29]
[1727886310840,0.12502,147.41,147.38,3.3924]
[1727886311256,3.51692,147.41,147.38,3.3924]
[1727886311449,3.51692,147.41,147.36,16.29]
[1727886311450,0.12502,147.41,147.36,16.29]
[1727886311643,0.12502,147.41,147.4,3.3919]
[1727886312459,3.42224648,147.46,147.38,16.29]
[1727886312649,0.12502,147.47,147.39,1.3185]
[1727886313950,16.29,147.45,147.39,1.3185]
[1727886314145,16.29,147.43,147.35,5.72502]
[1727886315352,16.29,147.43,147.35,3.51792]
[1727886315553,16.29,147.41,147.35,0.12502]
[1727886315758,5.6,147.4,147.35,0.12502]
[1727886315943,3.3928,147.36,147.35,0.12502]
[1727886318352,8.93695682,147.4,147.35,0.12502]
[1727886318751,16.29,147.37,147.35,0.12502]
[1727886318954,16.29,147.37,147.34,8.0]
[1727886319155,5.6,147.36,147.34,8.0]
[1727886319347,3.3931,147.35,147.34,8.0]
[1727886325161,3.3931,147.35,147.34,6.8669]
[1727886329061,3.3931,147.35,147.34,5.8669]
[1727886329458,8.9531,147.35,147.34,5.8669]
[1727886330064,3.3929,147.36,147.34,5.8669]
[1727886330365,5.56,147.37,147.34,5.8669]
[1727886330562,5.56,147.37,147.34,9.2601]
[1727886330761,8.9527,147.37,147.34,9.2601]
[1727886331267,5.56,147.4,147.34,22.1569]
[1727886331772,3.3925,147.38,147.35,3.393]
[1727886335175,3.3926,147.37,147.35,3.393]
[1727886335779,5.68502,147.41,147.34,23.5033]
[1727886335982,5.68502,147.41,147.36,3.3927]
[1727886336383,3.3925,147.38,147.36,3.3927]
[1727886336585,5.68502,147.41,147.34,23.5033]
[1727886336884,3.3929,147.36,147.34,26.8965]
[1727886337088,3.3501909,147.4,147.34,7.2133]
[1727886337483,3.3923,147.39,147.34,7.2133]
[1727886337682,3.3501909,147.4,147.34,7.2133]
[1727886338180,3.3501909,147.4,147.34,10.6066]
[1727886338584,3.3923,147.39,147.34,10.6066]
[1727886338796,21.97502,147.41,147.35,3.3929]
[1727886338985,5.68502,147.41,147.35,5.8669]
[1727886339387,5.68502,147.41,147.38,3.3923]
[1727886339588,5.68502,147.41,147.35,5.8669]
[1727886339794,0.12502,147.41,147.36,16.29]
[1727886340087,0.12502,147.41,147.37,1.3345]
[1727886340284,3.51692,147.41,147.37,1.3345]
[1727886340487,3.51692,147.41,147.38,3.3922]
[1727886340682,0.12502,147.41,147.37,17.6245]
[1727886340892,0.12502,147.47,147.39,16.29]
[1727886341087,5.56,147.46,147.43,3.3911]
[1727886341288,0.12502,147.47,147.42,5.8669]
[1727886341699,3.3908,147.45,147.42,9.2582]
[1727886341998,0.12502,147.47,147.44,5.8669]
[1727886342289,3.3898,147.5,147.44,5.8669]
[1727886342489,3.3898,147.5,147.45,19.0059]
[1727886342687,3.3898,147.5,147.47,3.3902]
[1727886342889,3.3898,147.5,147.45,19.0059]
[1727886343089,3.39,147.49,147.45,19.0059]
[1727886343297,5.68502,147.53,147.45,22.3965]
[1727886343996,3.39,147.49,147.45,22.3965]
[1727886344690,5.68502,147.53,147.45,2.7159]
[1727886344691,16.29,147.52,147.45,2.7159]
[1727886345797,3.3905,147.47,147.45,2.7159]
[1727886347699,19.62322605,147.5,147.44,5.8669]
[1727886348196,3.3905,147.47,147.44,5.8669]
[1727886348398,3.33322605,147.5,147.46,3.3905]
[1727886348590,16.29,147.51,147.44,5.8669]
[1727886348787,16.29,147.49,147.44,5.8669]
[1727886348999,21.85,147.49,147.44,5.8669]
[1727886349193,3.3908,147.45,147.44,5.8669]
[1727886350493,0.12502,147.53,147.44,5.8669]
[1727886350702,0.12502,147.53,147.45,16.29]
[1727886350996,0.12502,147.53,147.45,17.6679]
[1727886351197,3.3898,147.5,147.46,3.3903]
[1727886351392,0.12502,147.53,147.46,3.3903]
[1727886351996,0.12502,147.53,147.45,17.6679]
[1727886352291,16.29,147.52,147.45,1.3779]
[1727886352496,5.56,147.51,147.45,1.3779]
[1727886352693,5.56,147.51,147.46,5.8669]
[1727886353495,3.3903,147.47,147.46,5.8669]
[1727886354293,3.3902,147.48,147.46,5.8669]
[1727886355296,3.3903,147.47,147.46,5.8669]
[1727886356700,3.3902,147.48,147.46,5.8669]
[1727886357297,3.3903,147.47,147.46,5.8669]
[1727886358100,3.3902,147.48,147.46,5.8669]
[1727886360104,3.3903,147.47,147.46,5.8669]
[1727886360497,8.9503,147.47,147.46,5.8669]
[1727886368607,25.2403,147.47,147.46,5.8669]
[1727886368808,3.3915,147.42,147.41,0.12502]
[1727886369512,3.3915,147.42,147.41,1.12502]
[1727886369916,6.81006877,147.42,147.41,1.12502]
[1727886370120,3.3915,147.42,147.41,1.12502]
[1727886370414,3.3928,147.36,147.35,0.12502]
[1727886371014,6.72286104,147.36,147.35,0.12502]
[1727886371310,23.01286104,147.36,147.35,0.12502]
[1727886372217,19.62006104,147.36,147.29,2.73902]
[1727886372819,3.3941,147.31,147.29,1.44662]
[1727886373227,5.56,147.34,147.29,1.44662]
[1727886373520,3.3939,147.32,147.29,1.44662]
[1727886373716,5.56,147.34,147.29,1.44662]
[1727886373914,19.62006104,147.36,147.29,1.44662]
[1727886374118,3.3931,147.35,147.31,3.3938]
[1727886374307,3.3931,147.35,147.29,1.44662]
[1727886374918,21.85,147.36,147.29,1.44662]
[1727886375214,16.29,147.34,147.29,1.44662]
[1727886375413,5.56,147.36,147.29,0.12502]
[1727886375615,16.29,147.35,147.29,0.12502]
[1727886375920,3.3937,147.33,147.29,3.51942]
[1727886376312,3.3937,147.33,147.29,0.12502]
[1727886376521,3.3932,147.35,147.31,3.394]
[1727886376716,8.9532,147.35,147.31,3.394]
[1727886376923,5.56,147.35,147.31,3.394]
[1727886377323,5.56,147.35,147.3,16.29]
[1727886377525,5.56,147.38,147.32,16.29]
[1727886377720,5.56,147.38,147.33,1.3952]
[1727886378120,8.9525,147.38,147.35,3.3931]
[1727886378323,8.95827574,147.4,147.33,1.3952]
[1727886378623,3.3927,147.37,147.34,3.3932]
[1727886379021,3.3927,147.37,147.33,1.3952]
[1727886379227,3.3924,147.38,147.35,3.3929]
[1727886380822,5.56,147.4,147.33,1.3952]
[1727886380823,16.29,147.39,147.33,1.3952]
[1727886381823,3.3932,147.35,147.33,1.3952]
[1727886382524,16.29,147.39,147.33,1.3952]
[1727886383327,3.3932,147.35,147.33,1.3952]
[1727886384123,16.29,147.39,147.33,1.3952]
[1727886385223,3.3927,147.37,147.35,3.393]
[1727886385430,16.29,147.39,147.33,1.3952]
[1727886385727,5.56,147.4,147.33,1.3952]
[1727886385929,3.3924,147.38,147.33,1.3952]
[1727886386329,5.56,147.4,147.33,1.3952]
[1727886386528,3.3926,147.37,147.33,1.3952]
[1727886386724,3.3926,147.37,147.33,0.9911596]
[1727886387230,3.3926,147.37,147.32,2.63645144]
[1727886387840,3.3926,147.37,147.34,2.9891596]
[1727886388332,3.3926,147.37,147.35,3.3931]
[1727886388725,3.3926,147.37,147.35,2.9890596]
[1727886389325,3.3926,147.37,147.35,2.5850192]
[1727886389524,3.3926,147.37,147.34,3.3932]
[1727886390030,16.29,147.39,147.33,3.3934]
[1727886390228,16.29,147.39,147.32,2.63645144]
[1727886390529,3.3935,147.33,147.32,1.27215144]
[1727886391334,3.3935,147.33,147.31,3.3938]
[1727886391634,3.3934,147.34,147.31,3.3938]
[1727886392439,3.3932,147.35,147.32,3.3936]
[1727886392731,16.29,147.35,147.29,1.52912]
[1727886393129,3.3935,147.34,147.29,4.92352]
[1727886393333,16.29,147.35,147.29,1.52912]
[1727886394333,3.3935,147.33,147.31,3.394]
[1727886394537,3.3935,147.33,147.29,1.52912]
[1727886394928,3.3933,147.34,147.31,3.394]
[1727886395131,3.3933,147.34,147.29,1.52912]
[1727886395432,3.3933,147.34,147.32,3.3937]
[1727886395829,3.3925,147.38,147.33,16.29]
[1727886396032,0.12502,147.41,147.38,3.3923]
[1727886396234,0.12502,147.41,147.35,16.29]
[1727886396434,0.12502,147.41,147.36,1.2849]
[1727886396629,0.12502,147.41,147.39,3.392]
[1727886396939,0.12502,147.41,147.36,1.2849]
[1727886397336,3.51672,147.41,147.39,3.392]
[1727886397541,0.12502,147.41,147.39,3.392]
[1727886398534,0.12502,147.41,147.36,1.2849]
[1727886399334,3.51682,147.41,147.38,3.3922]
[1727886399540,3.51682,147.41,147.36,1.2849]
[1727886399734,3.51682,147.41,147.38,3.3923]
[1727886401634,3.3919,147.4,147.36,1.2849]
[1727886401834,3.3919,147.4,147.37,3.3924]
[1727886402543,3.3919,147.4,147.37,3.3926]
[1727886404537,3.51692,147.41,147.38,3.3922]
[1727886405336,3.392,147.4,147.38,3.3922]
[1727886406445,3.392,147.4,147.37,3.3925]
[1727886407042,3.3923,147.39,147.36,1.2849]
[1727886407240,3.3923,147.39,147.36,4.6776]
[1727886407946,3.3923,147.39,147.37,3.3925]
[1727886408641,0.12502,147.41,147.36,1.2849]
[1727886408844,16.41502,147.41,147.34,1.3379]
[1727886409440,3.3923,147.39,147.36,3.3927]
[1727886409737,16.41502,147.41,147.36,3.3927]
[1727886410340,16.41502,147.41,147.34,1.3379]
[1727886410743,0.12502,147.41,147.34,17.6279]
[1727886410946,0.12502,147.41,147.38,3.3922]
[1727886410947,3.51682,147.41,147.38,3.3922]
[1727886411148,0.12502,147.41,147.36,16.29]
[1727886411453,0.12502,147.41,147.39,3.392]
[1727886412041,0.12502,147.41,147.36,21.83]
[1727886412245,3.3921,147.4,147.37,3.3925]
[1727886413051,0.12502,147.41,147.34,6.8779]
[1727886413251,3.3927,147.37,147.34,10.271]
[1727886414050,16.41502,147.41,147.35,3.393]
[1727886414252,3.3925,147.38,147.34,6.8779]
[1727886414954,0.12502,147.41,147.34,6.8779]
[1727886415153,0.12502,147.41,147.34,23.1679]
[1727886415560,0.12502,147.41,147.37,3.3925]
[1727886416157,3.3921,147.4,147.37,3.3925]
[1727886417757,0.12502,147.41,147.36,16.29]
[1727886417948,0.12502,147.41,147.4,3.3919]
[1727886421059,3.51672,147.41,147.39,3.392]
[1727886421753,3.3919,147.4,147.38,4.7399]
[1727886422259,3.3919,147.4,147.38,3.3922]
[1727886423259,3.3919,147.4,147.37,3.3925]
[1727886423650,0.12502,147.41,147.34,18.9183]
[1727886423863,3.3927,147.37,147.34,6.0214]
[1727886424052,3.3927,147.37,147.34,2.6283]
[1727886424457,3.3927,147.37,147.35,3.3929]
[1727886425254,3.3925,147.38,147.35,3.3929]
[1727886425456,0.12502,147.41,147.35,3.3929]
[1727886425654,0.12502,147.41,147.34,6.0215]
[1727886425854,16.29,147.4,147.34,1.2904]
[1727886426052,16.29,147.4,147.3,17.6323]
[1727886426255,16.29,147.39,147.31,8.9339]
[1727886426563,5.54,147.38,147.3,1.3423]
[1727886426757,5.54,147.38,147.29,2.76042]
[1727886426758,16.29,147.35,147.29,4.78582]
[1727886426959,16.29,147.35,147.29,1.39152]
[1727886426960,3.3942,147.3,147.29,1.39152]
[1727886427466,3.3942,147.3,147.29,0.12502]
[1727886427859,3.3938,147.32,147.29,3.51932]
[1727886428260,5.54,147.34,147.29,0.12502]
[1727886428573,5.54,147.38,147.3,16.29]
[1727886429065,5.54,147.38,147.33,16.29]
[1727886429268,5.68502,147.41,147.33,16.29]
[1727886429561,5.68502,147.41,147.34,16.29]
[1727886429562,0.12502,147.41,147.34,16.29]
[1727886430165,3.3923,147.39,147.34,16.29]
[1727886430567,3.3923,147.39,147.36,3.3926]
[1727886431961,16.29,147.4,147.33,5.56]
[1727886432263,16.29,147.4,147.32,1.3524]
[1727886432471,3.393,147.36,147.33,3.3934]
[1727886432763,16.29,147.4,147.32,1.3524]
[1727886433156,16.29,147.4,147.34,3.3932]
[1727886433565,3.3927,147.37,147.34,3.3932]
[1727886434166,3.3925,147.38,147.32,1.3524]
[1727886434362,16.29,147.4,147.32,1.3524]
[1727886434567,0.12502,147.41,147.33,16.29]
[1727886434768,0.12502,147.41,147.37,16.29]
[1727886435270,0.12502,147.41,147.4,3.3919]
[1727886437170,3.3923,147.39,147.36,4.6627]
[1727886437371,0.12502,147.41,147.36,3.3927]
[1727886438660,3.3926,147.37,147.35,8.953]
[1727886438873,3.3926,147.37,147.35,5.56]
[1727886439169,3.3926,147.37,147.32,2.6224]
[1727886439170,0.12502,147.41,147.34,3.3932]
[1727886439471,21.83,147.4,147.32,8.1624]
[1727886439969,3.3925,147.38,147.32,8.1624]
[1727886440466,8.9321,147.4,147.33,16.29]
[1727886440859,5.54,147.4,147.35,16.29]
[1727886441065,0.12502,147.41,147.36,21.83]
[1727886441569,3.51682,147.41,147.36,21.83]
[1727886441776,0.12502,147.41,147.36,21.83]
[1727886442471,3.51672,147.41,147.39,3.3921]
[1727886444370,0.12502,147.41,147.36,5.54]
[1727886445169,3.3923,147.39,147.36,5.54]
[1727886446178,3.392,147.4,147.37,3.3925]
[1727886446377,0.12502,147.41,147.36,5.54]
[1727886446772,0.12502,147.41,147.39,3.3919]
[1727886447472,3.51672,147.41,147.39,3.3919]
[1727886447867,0.12502,147.41,147.37,3.3924]
[1727886448080,3.3921,147.39,147.37,3.3924]
[1727886448274,0.12502,147.41,147.37,3.3924]
[1727886448873,3.392,147.4,147.38,3.3923]
[1727886449474,3.392,147.4,147.37,3.3925]
[1727886450081,3.3923,147.39,147.36,3.3927]
[1727886450280,0.12502,147.41,147.34,5.54]
[1727886450785,3.3925,147.38,147.36,3.3928]
[1727886452581,0.12502,147.41,147.34,5.54]
[1727886452780,3.3928,147.37,147.35,3.393]
[1727886455484,3.3925,147.38,147.35,3.393]
[1727886455685,5.66502,147.41,147.34,5.54]
[1727886455892,5.66502,147.41,147.38,3.3922]
[1727886456188,0.12502,147.41,147.38,3.3922]
[1727886456686,3.51682,147.41,147.38,3.3922]
[1727886456886,3.51682,147.41,147.35,16.29]
[1727886457188,0.12502,147.41,147.4,3.3919]
[1727886459887,0.12502,147.41,147.36,5.54]
[1727886460092,0.12502,147.41,147.36,6.9354]
[1727886460291,0.12502,147.41,147.36,1.3954]
[1727886460696,0.12502,147.41,147.36,17.6854]
[1727886461391,0.12502,147.41,147.4,3.3919]
[1727886462700,3.51672,147.41,147.38,5.54]
[1727886463392,3.3921,147.4,147.38,5.54]
[1727886463889,0.12502,147.41,147.36,17.6854]
[1727886463890,0.12502,147.41,147.36,1.3954]
[1727886464389,0.12502,147.41,147.37,3.3925]
[1727886465285,3.3922,147.39,147.37,3.3925]
[1727886469493,3.392,147.4,147.37,3.3925]
[1727886470499,0.12502,147.41,147.36,1.3954]
[1727886470694,0.12502,147.41,147.36,4.7881]
[1727886470893,0.12502,147.41,147.35,5.54]
[1727886470894,16.41502,147.41,147.32,20.2437]
[1727886471091,16.41502,147.41,147.32,9.4937]
[1727886471290,3.393,147.36,147.34,3.3932]
[1727886471496,3.393,147.36,147.32,9.4937]
[1727886471690,16.29,147.39,147.32,3.9537]
[1727886471893,3.3933,147.35,147.32,7.3473]
[1727886472298,3.3933,147.35,147.32,3.9537]
[1727886472500,3.3933,147.35,147.33,3.3935]
[1727886472696,19.73474847,147.39,147.32,3.9537]
[1727886472697,3.3929,147.36,147.32,3.9537]
[1727886473000,3.3929,147.36,147.33,3.3933]
[1727886473387,3.3929,147.36,147.34,3.3931]
[1727886473593,3.3925,147.38,147.32,20.2437]
[1727886474902,3.3925,147.38,147.33,3.3933]
[1727886475095,3.3925,147.38,147.32,20.2437]
[1727886476600,3.3925,147.38,147.35,3.3929]
[1727886477497,21.95502,147.41,147.35,3.3929]
[1727886477804,21.95502,147.41,147.33,3.3934]
[1727886477998,16.29,147.39,147.33,3.3934]
[1727886478199,3.3926,147.38,147.33,3.3934]
[1727886478399,16.29,147.39,147.33,3.3934]
[1727886478596,16.29,147.39,147.32,3.9537]
[1727886478803,3.393,147.36,147.33,3.3934]
[1727886480800,3.3931,147.35,147.33,3.3934]
[1727886481101,19.74503281,147.39,147.32,4.7249]
[1727886481302,19.74503281,147.39,147.31,5.54]
[1727886481507,3.3936,147.33,147.31,5.54]
[1727886482004,16.29,147.35,147.29,0.12502]
[1727886482202,3.3942,147.3,147.29,0.12502]
[1727886482610,16.29,147.35,147.29,0.12502]
[1727886483412,3.3942,147.3,147.29,0.12502]
[1727886485305,8.9342,147.3,147.29,0.12502]
[1727886485500,3.3954,147.25,147.23,0.12502]
[1727886485904,16.29,147.28,147.23,0.12502]
[1727886486609,3.3956,147.24,147.23,0.12502]
[1727886488214,16.29,147.25,147.17,0.12502]
[1727886488408,16.29,147.23,147.17,0.12502]
[1727886488604,19.68311188,147.23,147.17,0.12502]
[1727886489422,5.54,147.22,147.17,0.12502]
[1727886489708,3.3969,147.19,147.17,0.12502]
[1727886490302,5.54,147.22,147.17,0.12502]
[1727886490303,3.397,147.18,147.17,0.12502]
[1727886490915,3.3981,147.14,147.05,0.12502]
[1727886491112,16.29,147.16,147.07,1.2691]
[1727886491608,8.9375,147.16,147.08,16.29]
[1727886491804,5.54,147.16,147.08,16.29]
[1727886492001,3.3975,147.16,147.12,3.3982]
[1727886492206,16.29,147.19,147.08,21.83]
[1727886492419,5.54,147.19,147.11,16.41502]
[1727886492809,8.9369,147.19,147.15,3.3975]
[1727886493810,3.3971,147.18,147.14,3.3977]
[1727886494315,3.3971,147.18,147.12,1.3171]
[1727886494507,3.3971,147.18,147.15,3.3976]
[1727886495411,8.9368,147.19,147.15,3.3976]
[1727886495609,8.9368,147.19,147.12,1.3171]
[1727886495810,3.3968,147.19,147.12,1.3171]
[1727886496210,3.3968,147.19,147.15,3.3975]
[1727886496408,3.397,147.18,147.15,3.3975]
[1727886496810,3.397,147.18,147.14,3.3978]
[1727886498611,16.29,147.19,147.14,3.3978]
[1727886498911,16.29,147.19,147.11,16.41502]
[1727886498912,16.29,147.15,147.11,0.12502]
[1727886500306,3.3983,147.13,147.11,0.12502]
[1727886500907,16.29,147.14,147.11,0.12502]
[1727886501112,3.3984,147.12,147.11,0.12502]
[1727886501318,16.29,147.14,147.11,0.12502]
[1727886502017,3.3984,147.12,147.11,0.12502]
[1727886503415,16.29,147.14,147.11,0.12502]
[1727886503619,3.3983,147.13,147.11,0.12502]
[1727886506824,16.29,147.15,147.11,0.12502]
[1727886507522,3.398,147.14,147.11,3.52352]
[1727886507722,16.29,147.15,147.11,0.12502]
[1727886508022,19.6878,147.15,147.12,3.3981]
[1727886510917,16.29,147.15,147.13,3.3981]
[1727886511524,16.29,147.15,147.14,3.3979]
[1727886511715,8.9375,147.16,147.14,3.3979]
[1727886511925,16.29,147.19,147.11,0.12502]
[1727886512117,21.83,147.19,147.11,0.12502]
[1727886512919,3.3976,147.16,147.13,3.398]
[1727886513522,3.3976,147.16,147.14,3.3979]
[1727886513721,3.3974,147.17,147.14,3.3979]
[1727886516730,3.3971,147.18,147.15,3.3975]
[1727886516923,21.83,147.19,147.11,0.12502]
[1727886518030,3.3975,147.16,147.13,3.398]
[1727886518433,3.3973,147.17,147.14,3.3977]
[1727886519536,3.3971,147.18,147.15,3.3976]
[1727886520338,3.3972,147.17,147.15,3.3976]
[1727886520538,16.29,147.19,147.11,0.12502]
[1727886521042,16.29,147.17,147.11,0.12502]
[1727886521336,16.29,147.17,147.13,3.398]
[1727886521541,3.3975,147.16,147.13,3.398]
[1727886523247,3.3978,147.15,147.12,3.3982]
[1727886523831,3.3978,147.15,147.13,3.3981]
[1727886524036,3.398,147.14,147.11,0.12502]
[1727886525133,16.29,147.17,147.11,0.12502]
[1727886525339,3.3978,147.15,147.12,3.3983]
[1727886525536,16.29,147.17,147.12,3.3983]
[1727886525935,3.398,147.14,147.11,3.52352]
[1727886527248,3.398,147.14,147.12,3.3984]
[1727886527644,3.398,147.14,147.11,3.52352]
[1727886527941,16.29,147.16,147.11,0.12502]
[1727886528147,3.3983,147.13,147.11,0.12502]
[1727886528349,3.3302814,147.15,147.11,0.12502]
[1727886529251,3.398,147.14,147.11,3.52362]
[1727886529752,3.3981,147.13,147.11,3.52362]
[1727886530846,3.3981,147.13,147.11,0.12502]
[1727886531652,13.8481,147.13,147.11,0.12502]
[1727886535248,13.8484,147.12,147.11,0.12502]
[1727886535956,13.8483,147.13,147.11,0.12502]
[1727886536352,10.45,147.13,147.11,0.12502]
[1727886536750,3.3984,147.12,147.11,0.12502]
[1727886537251,13.8484,147.12,147.11,0.12502]
[1727886538354,10.45,147.12,147.11,0.12502]
[1727886538654,10.45,147.13,147.11,0.12502]
[1727886539749,13.8483,147.13,147.11,0.12502]
[1727886540264,1.3898,147.18,147.11,10.57502]
[1727886540556,10.45,147.16,147.11,10.57502]
[1727886540860,3.3978,147.15,147.12,3.3983]
[1727886541753,3.3984,147.12,147.11,0.12502]
[1727886541953,10.45,147.14,147.11,0.12502]
[1727886543262,13.848,147.14,147.11,0.12502]
[1727886543462,10.45,147.12,147.11,0.12502]
[1727886543762,1.3898,147.18,147.05,0.12502]
[1727886543763,10.45,147.09,147.05,0.12502]
[1727886546357,13.8491,147.09,147.05,3.52502]
[1727886547447,10.45,147.09,147.05,0.12502]
[1727886547650,10.45,147.08,147.05,0.12502]
[1727886548856,1.3294,147.12,147.05,0.12502]
[1727886548857,10.45,147.06,147.05,0.12502]
[1727886549254,10.45,147.08,147.05,0.12502]
[1727886549452,3.47164845,147.13,147.05,0.12502]
[1727886549653,5.54,147.12,147.05,10.57502]
[1727886549853,13.8488,147.11,147.07,3.3994]
[1727886550055,10.45,147.11,147.07,3.3994]
[1727886550361,10.45,147.11,147.06,10.45]
[1727886551056,10.45,147.11,147.08,3.3991]
[1727886551458,10.45,147.11,147.06,15.99]
[1727886551859,3.3988,147.1,147.07,3.3994]
[1727886552550,13.8488,147.1,147.07,3.3994]
[1727886553564,10.45,147.1,147.08,3.3992]
[1727886553762,10.45,147.1,147.06,5.54]
[1727886554457,13.8489,147.1,147.07,3.3994]
[1727886554863,10.45,147.11,147.06,15.99]
[1727886555055,10.45,147.11,147.08,3.3991]
[1727886555556,5.54,147.14,147.06,15.99]
[1727886555760,10.45,147.12,147.1,3.3987]
[1727886556560,10.45,147.12,147.07,10.45]
[1727886556759,10.45,147.12,147.09,3.399]
[1727886556961,13.8485,147.12,147.09,3.399]
[1727886557259,10.45,147.12,147.08,3.3991]
[1727886557662,13.8485,147.12,147.07,10.45]
[1727886557864,13.8485,147.12,147.08,3.3992]
[1727886558069,10.45,147.1,147.06,6.8751]
[1727886558556,10.45,147.1,147.06,1.3351]
[1727886558958,10.45,147.1,147.05,5.66502]
[1727886559266,13.8493,147.09,147.06,3.3996]
[1727886559467,10.45,147.09,147.05,5.66502]
[1727886560360,3.3993,147.08,147.05,9.06492]
[1727886560762,3.3993,147.08,147.05,5.66502]
[1727886560965,3.3993,147.08,147.06,3.3997]
[1727886561965,13.8493,147.08,147.05,5.66502]
[1727886562159,13.8493,147.08,147.05,9.06482]
[1727886567668,10.45,147.08,147.05,5.66502]
[1727886567868,3.3996,147.07,147.05,5.66502]
[1727886568669,3.3996,147.07,147.05,9.06492]
[1727886568864,10.45,147.1,147.05,5.66502]
[1727886569060,10.45,147.1,147.05,16.11502]
[1727886569468,13.8494,147.08,147.05,5.66502]
[1727886570070,13.8494,147.08,147.05,9.06492]
[1727886571779,3.3994,147.08,147.05,16.11502]
[1727886572077,13.8492,147.09,147.06,3.3997]
[1727886572474,10.45,147.09,147.06,3.3997]
[1727886572780,3.3993,147.08,147.06,3.3997]
[1727886573780,3.3993,147.08,147.05,19.51502]
[1727886573980,3.3993,147.08,147.05,9.06502]
[1727886574580,10.45,147.08,147.05,5.66502]
[1727886574780,3.3995,147.07,147.05,5.66502]
[1727886576381,3.3995,147.07,147.05,0.12502]